[Event "EWIBCC 2019"]
[Site "Monte-Carlo"]
[Date "2019.11.29"]
[Round "13.10"]
[White "Muzychuk, Mariya"]
[Black "Osmak, Iulija"]
[Result "1/2-1/2"]
[ECO "B00"]
[WhiteElo "2552"]
[BlackElo "2401"]
[Annotator "ChessBase"]
[PlyCount "108"]
[EventDate "2019.11.29"]
[EventType "swiss"]
[EventCountry "MNC"]
[SourceTitle "playchess.com"]
[Source "ChessBase"]
[SourceQuality "1"]
[TimeControl "180+2"]

1. e4 {[%emt 0:00:00]} Nc6 {[%emt 0:00:00]} 2. Nf3 {[%emt 0:00:01]} d6 {[%emt 0:00:00]} 3. d4 {[%emt 0:00:01]} Bg4 {[%emt 0:00:01]} 4. Be2 {[%emt 0:00:05]} Nf6 {[%emt 0:00:01]} 5. Nc3 {[%emt 0:00:03]} e5 {[%emt 0:00:04]} 6. d5 {[%emt 0:00:02]} Ne7 {[%emt 0:00:02]} 7. h3 {[%emt 0:00:05]} Bd7 {[%emt 0:00:02]} 8. Be3 {[%emt 0:00:07]} Ng6 {[%emt 0:00:03]} 9. Qd2 {[%emt 0:00:00]} c6 {[%emt 0:00:04]} 10. dxc6 {[%emt 0:00:25]} Bxc6 {[%emt 0:00:33]} 11. Bc4 {[%emt 0:00:01]} Be7 {[%emt 0:00:05]} 12. Qd3 {[%emt 0:00:20]} O-O {[%emt 0:00:06]} 13. O-O {[%emt 0:00:14]} a6 {[%emt 0:00:07]} 14. a4 {[%emt 0:00:01]} Rc8 {[%emt 0:00:08]} 15. Rfd1 {[%emt 0:00:04]} Qc7 {[%emt 0:00:20]} 16. Bb3 {[%emt 0:00:08]} Nh5 {[%emt 0:00:09]} 17. Nd5 {[%emt 0:00:11]} Bxd5 {[%emt 0:00:02]} 18. Qxd5 {[%emt 0:00:04]} Nhf4 {[%emt 0:00:06]} 19. Qd2 {[%emt 0:00:01]} Ne6 {[%emt 0:00:13]} 20. c3 {[%emt 0:00:10]} h6 {[%emt 0:00:24]} 21. a5 {[%emt 0:00:28]} Kh7 {[%emt 0:00:07]} 22. Bb6 {[%emt 0:00:01]} Qb8 {[%emt 0:00:07]} 23. g3 {[%emt 0:00:03]} Nc5 {[%emt 0:00:03]} 24. Bd5 {[%emt 0:00:03]} Bd8 {[%emt 0:00:09]} 25. Bxd8 {[%emt 0:00:04]} Rfxd8 {[%emt 0:00:03]} 26. Bxf7 {[%emt 0:00:09]} Ne7 {[%emt 0:00:06]} 27. Bd5 {[%emt 0:00:04]} Rf8 {[%emt 0:00:03]} 28. Qe3 {[%emt 0:00:10]} Rf6 {[%emt 0:00:10]} 29. Nd2 {[%emt 0:00:02]} Rcf8 {[%emt 0:00:04]} 30. Rf1 {[%emt 0:00:06]} Nxd5 {[%emt 0:00:08]} 31. exd5 {[%emt 0:00:01]} Qc7 {[%emt 0:00:05]} 32. b4 {[%emt 0:00:01]} Nd7 {[%emt 0:00:02]} 33. Ne4 {[%emt 0:00:01]} R6f7 {[%emt 0:00:03]} 34. f3 {[%emt 0:00:05]} Nf6 {[%emt 0:00:06]} 35. Nxf6+ {[%emt 0:00:01]} Rxf6 {[%emt 0:00:00]} 36. Kg2 {[%emt 0:00:03]} Kg8 {[%emt 0:00:08]} 37. Rf2 {[%emt 0:00:02]} Qc4 {[%emt 0:00:03]} 38. Rd1 {[%emt 0:00:01]} Rc8 {[%emt 0:00:02]} 39. Rd3 {[%emt 0:00:02]} Rff8 {[%emt 0:00:09]} 40. Qe4 {[%emt 0:00:05]} Qb5 {[%emt 0:00:02]} 41. Rc2 {[%emt 0:00:11]} Rc4 {[%emt 0:00:01]} 42. Qe2 {[%emt 0:00:06]} Rfc8 {[%emt 0:00:05]} 43. Qd2 {[%emt 0:00:03]} Qxb4 {[%emt 0:00:04]} 44. cxb4 {[%emt 0:00:03]} Rxc2 {[%emt 0:00:01]} 45. Kf2 {[%emt 0:00:17]} Rxd2+ {[%emt 0:00:01]} 46. Rxd2 {[%emt 0:00:00]} Rc4 {[%emt 0:00:00]} 47. Rb2 {[%emt 0:00:01]} Rd4 {[%emt 0:00:05]} 48. b5 {[%emt 0:00:01]} Rxd5 {[%emt 0:00:02]} 49. bxa6 {[%emt 0:00:02]} bxa6 {[%emt 0:00:00]} 50. Rb6 {[%emt 0:00:03]} Rxa5 {[%emt 0:00:02]} 51. Rxd6 {[%emt 0:00:00]} Kf7 {[%emt 0:00:03]} 52. Ke3 {[%emt 0:00:01]} Ra4 {[%emt 0:00:04]} 53. Rb6 {[%emt 0:00:02]} a5 {[%emt 0:00:02]} 54. Ra6 {[%emt 0:00:03]} Ke7 {[%emt 0:00:08] Ke4} 1/2-1/2

[Event "EWIBCC 2019"]
[Site "Monte-Carlo"]
[Date "2019.11.29"]
[Round "13.11"]
[White "Rogule, Laura"]
[Black "Socko, Monika"]
[Result "1-0"]
[ECO "A26"]
[WhiteElo "2293"]
[BlackElo "2417"]
[Annotator "NA"]
[PlyCount "140"]
[EventDate "2019.11.29"]
[EventType "swiss"]
[EventCountry "MNC"]
[SourceTitle "playchess.com"]
[Source "ChessBase"]
[SourceQuality "1"]
[TimeControl "180+2"]

1. c4 {[%emt 0:00:00]} e5 {[%emt 0:00:00]} 2. Nc3 {[%emt 0:00:00]} Nc6 {[%emt 0:00:00]} 3. g3 {[%emt 0:00:01]} Nf6 {[%emt 0:00:04]} 4. Bg2 {[%emt 0:00:01]} g6 {[%emt 0:00:03]} 5. e4 {[%emt 0:00:18]} Bg7 {[%emt 0:00:02]} 6. Nge2 {[%emt 0:00:01]} O-O {[%emt 0:00:03]} 7. O-O {[%emt 0:00:03]} d6 {[%emt 0:00:01]} 8. d3 {[%emt 0:00:12]} Nd4 {[%emt 0:00:03]} 9. Nxd4 {[%emt 0:00:48]} exd4 {[%emt 0:00:02]} 10. Ne2 {[%emt 0:00:01]} c5 {[%emt 0:00:02]} 11. f4 {[%emt 0:00:05]} Ng4 {[%emt 0:00:04]} 12. Rb1 {[%emt 0:00:15]} Rb8 {[%emt 0:00:13]} 13. a4 {[%emt 0:00:26]} Bd7 {[%emt 0:00:05]} 14. Rf3 {[%emt 0:00:11]} a6 {[%emt 0:00:06]} 15. h3 {[%emt 0:00:05]} Nf6 {[%emt 0:00:08]} 16. b4 {[%emt 0:00:10]} b5 {[%emt 0:00:11]} 17. axb5 {[%emt 0:00:05]} axb5 {[%emt 0:00:01]} 18. bxc5 {[%emt 0:00:05]} dxc5 {[%emt 0:00:01]} 19. e5 {[%emt 0:00:07]} Ne8 {[%emt 0:00:01]} 20. cxb5 {[%emt 0:00:02]} Bxb5 {[%emt 0:00:10]} 21. Ba3 {[%emt 0:00:03]} Bc6 {[%emt 0:00:43]} 22. Rxb8 {[%emt 0:00:05]} Qxb8 {[%emt 0:00:01]} 23. Bxc5 {[%emt 0:00:09]} Bxf3 {[%emt 0:00:05]} 24. Bxf3 {[%emt 0:00:01]} Nc7 {[%emt 0:00:01]} 25. Bxf8 {[%emt 0:00:02]} Bxf8 {[%emt 0:00:01]} 26. Qc2 {[%emt 0:00:05]} Ne6 {[%emt 0:00:06]} 27. Kg2 {[%emt 0:00:02]} h5 {[%emt 0:00:05]} 28. Bd5 {[%emt 0:00:04]} Nc7 {[%emt 0:00:08]} 29. Qc4 {[%emt 0:00:07]} Kg7 {[%emt 0:00:20]} 30. Qxd4 {[%emt 0:00:09]} Qb1 {[%emt 0:00:06]} 31. e6+ {[%emt 0:00:04]} f6 {[%emt 0:00:01]} 32. Bc4 {[%emt 0:00:03]} Qb7+ {[%emt 0:00:28]} 33. Kf2 {[%emt 0:00:04]} Be7 {[%emt 0:00:08]} 34. Qd7 {[%emt 0:00:03]} Qb6+ {[%emt 0:00:00]} 35. d4 {[%emt 0:00:02]} Qd6 {[%emt 0:00:04]} 36. Qxd6 {[%emt 0:00:02]} Bxd6 {[%emt 0:00:01]} 37. Nc3 {[%emt 0:00:01]} f5 {[%emt 0:00:02]} 38. Ke3 {[%emt 0:00:03]} Kf6 {[%emt 0:00:00]} 39. Nd5+ {[%emt 0:00:03]} Nxd5+ {[%emt 0:00:08]} 40. Bxd5 {[%emt 0:00:01]} g5 {[%emt 0:00:01]} 41. fxg5+ {[%emt 0:00:03]} Kxg5 {[%emt 0:00:01]} 42. Kf3 {[%emt 0:00:01]} h4 {[%emt 0:00:04]} 43. gxh4+ {[%emt 0:00:03]} Kxh4 {[%emt 0:00:01]} 44. Kg2 {[%emt 0:00:01]} Kg5 {[%emt 0:00:05]} 45. Bc6 {[%emt 0:00:02]} Kf4 {[%emt 0:00:04]} 46. Kf2 {[%emt 0:00:03]} Be7 {[%emt 0:00:03]} 47. Bf3 {[%emt 0:00:03]} Bf6 {[%emt 0:00:04]} 48. d5 {[%emt 0:00:01]} Be7 {[%emt 0:00:01]} 49. Kg2 {[%emt 0:00:03]} Bd6 {[%emt 0:00:01]} 50. Bd1 {[%emt 0:00:01]} Be7 {[%emt 0:00:01]} 51. Bf3 {[%emt 0:00:01]} Bd6 {[%emt 0:00:05]} 52. h4 {[%emt 0:00:01]} Be7 {[%emt 0:00:03]} 53. h5 {[%emt 0:00:02]} Kg5 {[%emt 0:00:01]} 54. Kf2 {[%emt 0:00:02]} f4 {[%emt 0:00:03]} 55. Ke2 {[%emt 0:00:02]} Kf5 {[%emt 0:00:06]} 56. Kd3 {[%emt 0:00:02]} Ke5 {[%emt 0:00:05]} 57. h6 {[%emt 0:00:04]} Kd6 {[%emt 0:00:01]} 58. Ke4 {[%emt 0:00:02]} Bg5 {[%emt 0:00:01]} 59. h7 {[%emt 0:00:02]} Bf6 {[%emt 0:00:00]} 60. Kf5 {[%emt 0:00:05]} Bh8 {[%emt 0:00:01]} 61. Kg6 {[%emt 0:00:01]} Ke7 {[%emt 0:00:01]} 62. Bg4 {[%emt 0:00:02]} Bc3 {[%emt 0:00:04]} 63. Kf5 {[%emt 0:00:03]} Kd6 {[%emt 0:00:05]} 64. Bf3 {[%emt 0:00:01]} Bh8 {[%emt 0:00:04]} 65. Kxf4 {[%emt 0:00:01]} Ke7 {[%emt 0:00:01]} 66. Kf5 {[%emt 0:00:01]} Bd4 {[%emt 0:00:02]} 67. Kg6 {[%emt 0:00:01]} Bh8 {[%emt 0:00:01]} 68. Bg4 {[%emt 0:00:01]} Bd4 {[%emt 0:00:02]} 69. d6+ {[%emt 0:00:01]} Kxd6 {[%emt 0:00:01]} 70. Kf7 {[%emt 0:00:01]} Kd5 {[%emt 0:00:19]} 1-0

[Event "EWIBCC 2019"]
[Site "Monte-Carlo"]
[Date "2019.11.29"]
[Round "13.12"]
[White "Guichard, Pauline"]
[Black "Reizniece-Ozola, Dana"]
[Result "0-1"]
[ECO "E63"]
[WhiteElo "2407"]
[BlackElo "2305"]
[Annotator "ChessBase"]
[PlyCount "214"]
[EventDate "2019.11.29"]
[EventType "swiss"]
[EventCountry "MNC"]
[SourceTitle "playchess.com"]
[Source "ChessBase"]
[SourceQuality "1"]
[TimeControl "180+2"]

1. c4 {[%emt 0:00:00]} Nf6 {[%emt 0:00:00]} 2. Nf3 {[%emt 0:00:00]} g6 {[%emt 0:00:00]} 3. g3 {[%emt 0:00:01]} Bg7 {[%emt 0:00:00]} 4. Bg2 {[%emt 0:00:03]} O-O {[%emt 0:00:01]} 5. O-O {[%emt 0:00:02]} d6 {[%emt 0:00:01]} 6. d4 {[%emt 0:00:01]} Nc6 {[%emt 0:00:03]} 7. Nc3 {[%emt 0:00:02]} a6 {[%emt 0:00:01]} 8. b3 {[%emt 0:00:09]} Rb8 {[%emt 0:00:04]} 9. Bd2 {[%emt 0:00:09]} b5 {[%emt 0:00:04]} 10. d5 {[%emt 0:00:17]} Na7 {[%emt 0:00:18]} 11. e4 {[%emt 0:00:04]} b4 {[%emt 0:00:18]} 12. Ne2 {[%emt 0:00:10]} Nxe4 {[%emt 0:00:02]} 13. Be3 {[%emt 0:00:04]} Nc5 {[%emt 0:00:40]} 14. Bd4 {[%emt 0:00:10]} Bd7 {[%emt 0:00:22]} 15. Bxg7 {[%emt 0:00:33]} Kxg7 {[%emt 0:00:01]} 16. Nfd4 {[%emt 0:00:03]} e5 {[%emt 0:00:06]} 17. Nc2 {[%emt 0:00:17]} f5 {[%emt 0:00:29]} 18. f4 {[%emt 0:00:11]} Qf6 {[%emt 0:00:05]} 19. fxe5 {[%emt 0:00:22]} dxe5 {[%emt 0:00:01]} 20. Qd2 {[%emt 0:00:03]} a5 {[%emt 0:00:02]} 21. Qe3 {[%emt 0:00:06]} Qd6 {[%emt 0:00:02]} 22. a3 {[%emt 0:00:17]} bxa3 {[%emt 0:00:08]} 23. Rxa3 {[%emt 0:00:01]} Nc8 {[%emt 0:00:11]} 24. Rfa1 {[%emt 0:00:06]} Ne7 {[%emt 0:00:10]} 25. Nc1 {[%emt 0:00:05]} f4 {[%emt 0:00:06]} 26. gxf4 {[%emt 0:00:03]} exf4 {[%emt 0:00:05]} 27. Qc3+ {[%emt 0:00:07]} Kg8 {[%emt 0:00:02]} 28. Rxa5 {[%emt 0:00:03]} Qb6 {[%emt 0:00:08]} 29. Kh1 {[%emt 0:00:04]} Nxb3 {[%emt 0:00:28]} 30. Nxb3 {[%emt 0:00:03]} Qxb3 {[%emt 0:00:00]} 31. Qe5 {[%emt 0:00:02]} Qxc2 {[%emt 0:00:00]} 32. Qxe7 {[%emt 0:00:10]} f3 {[%emt 0:00:00]} 33. Bxf3 {[%emt 0:00:05]} Rf7 {[%emt 0:00:00]} 34. Qe2 {[%emt 0:00:02]} Qc3 {[%emt 0:00:00]} 35. Bg2 {[%emt 0:00:03]} Rbf8 {[%emt 0:00:00]} 36. Ra8 {[%emt 0:00:02]} Kg7 {[%emt 0:00:00]} 37. R8a2 {[%emt 0:00:08]} Bf5 {[%emt 0:00:00]} 38. Ra3 {[%emt 0:00:02]} Qd4 {[%emt 0:00:03]} 39. Rd1 {[%emt 0:00:01]} Qh4 {[%emt 0:00:02]} 40. Rf3 {[%emt 0:00:09]} g5 {[%emt 0:00:04]} 41. Qe5+ {[%emt 0:00:00]} Kg8 {[%emt 0:00:02]} 42. Rdf1 {[%emt 0:00:00]} Bg6 {[%emt 0:00:11]} 43. Rxf7 {[%emt 0:00:00]} Rxf7 {[%emt 0:00:01]} 44. Qe8+ {[%emt 0:00:02]} Kg7 {[%emt 0:00:01]} 45. Qe5+ {[%emt 0:00:01]} Kg8 {[%emt 0:00:02]} 46. Re1 {[%emt 0:00:05]} Bf5 {[%emt 0:00:04]} 47. Qe8+ {[%emt 0:00:03]} Kg7 {[%emt 0:00:00]} 48. Qe5+ {[%emt 0:00:01]} Kg8 {[%emt 0:00:01]} 49. d6 {[%emt 0:00:01]} cxd6 {[%emt 0:00:01]} 50. Qe8+ {[%emt 0:00:01]} Kg7 {[%emt 0:00:00]} 51. Qe3 {[%emt 0:00:01]} Qxc4 {[%emt 0:00:01]} 52. Qxg5+ {[%emt 0:00:01]} Bg6 {[%emt 0:00:01]} 53. Qe3 {[%emt 0:00:02]} Qc7 {[%emt 0:00:02]} 54. Qd4+ {[%emt 0:00:01]} Rf6 {[%emt 0:00:01]} 55. Rf1 {[%emt 0:00:01]} Qf7 {[%emt 0:00:01]} 56. Bd5 {[%emt 0:00:02]} Qe7 {[%emt 0:00:00]} 57. Bg2 {[%emt 0:00:09]} Qe5 {[%emt 0:00:02]} 58. Qd1 {[%emt 0:00:01]} Rxf1+ {[%emt 0:00:01]} 59. Qxf1 {[%emt 0:00:00]} Be4 {[%emt 0:00:01]} 60. Bxe4 Qxe4+ {[%emt 0:00:01]} 61. Kg1 {[%emt 0:00:10]} d5 62. Qa1+ {[%emt 0:00:00]} d4 {[%emt 0:00:01]} 63. Qa7+ {[%emt 0:00:00]} Kg6 {[%emt 0:00:01]} 64. Qb6+ {[%emt 0:00:00]} Kg5 {[%emt 0:00:01]} 65. Qc5+ {[%emt 0:00:00]} Kf4 {[%emt 0:00:01]} 66. Qf8+ {[%emt 0:00:00]} Ke3 {[%emt 0:00:01]} 67. Qf2+ {[%emt 0:00:01]} Kd3 {[%emt 0:00:01]} 68. Qf1+ {[%emt 0:00:01]} Qe2 {[%emt 0:00:01]} 69. Qb1+ {[%emt 0:00:01]} Ke3 {[%emt 0:00:01]} 70. Qc1+ {[%emt 0:00:05]} Qd2 {[%emt 0:00:03]} 71. Qa3+ {[%emt 0:00:01]} Qd3 {[%emt 0:00:03]} 72. Qe7+ {[%emt 0:00:04]} Qe4 {[%emt 0:00:01]} 73. Qa3+ {[%emt 0:00:02]} d3 {[%emt 0:00:01]} 74. Qc1+ {[%emt 0:00:01]} d2 {[%emt 0:00:01]} 75. Qc3+ {[%emt 0:00:00]} Qd3 {[%emt 0:00:03]} 76. Qe5+ {[%emt 0:00:01]} Kf3 {[%emt 0:00:02]} 77. Qf6+ {[%emt 0:00:10]} Ke4 {[%emt 0:00:04]} 78. Qe6+ {[%emt 0:00:01]} Kd4 {[%emt 0:00:01]} 79. Qd6+ {[%emt 0:00:01]} Kc3 {[%emt 0:00:03]} 80. Qa3+ {[%emt 0:00:01]} Kc2 {[%emt 0:00:02]} 81. Qa2+ {[%emt 0:00:06]} Kd1 {[%emt 0:00:03]} 82. Qa1+ {[%emt 0:00:01]} Ke2 {[%emt 0:00:01]} 83. Qf1+ {[%emt 0:00:00]} Ke3 {[%emt 0:00:01]} 84. Qf2+ {[%emt 0:00:01]} Ke4 {[%emt 0:00:01]} 85. Qh4+ {[%emt 0:00:01]} Kd5 {[%emt 0:00:06]} 86. Qd8+ {[%emt 0:00:01]} Ke4 {[%emt 0:00:00]} 87. Qe7+ {[%emt 0:00:01]} Kf4 {[%emt 0:00:02]} 88. Qf6+ {[%emt 0:00:03]} Kg4 {[%emt 0:00:04]} 89. Qe6+ {[%emt 0:00:03]} Kh5 {[%emt 0:00:03]} 90. Qe5+ {[%emt 0:00:05]} Kg6 {[%emt 0:00:06]} 91. Qe6+ {[%emt 0:00:01]} Kg5 {[%emt 0:00:02]} 92. Qe5+ {[%emt 0:00:01]} Qf5 {[%emt 0:00:03]} 93. Qe3+ {[%emt 0:00:01]} Qf4 {[%emt 0:00:01]} 94. Qe7+ {[%emt 0:00:06]} Kg4 {[%emt 0:00:03]} 95. Qd7+ {[%emt 0:00:01]} Kf3 {[%emt 0:00:01]} 96. Qd5+ {[%emt 0:00:01]} Ke2 {[%emt 0:00:02]} 97. Qb5+ {[%emt 0:00:01]} Ke3 {[%emt 0:00:02]} 98. Qb3+ {[%emt 0:00:04]} Ke4 {[%emt 0:00:02]} 99. Qc4+ {[%emt 0:00:02]} Kf5 {[%emt 0:00:01]} 100. Qd3+ {[%emt 0:00:01]} Ke5 {[%emt 0:00:02]} 101. Qe2+ {[%emt 0:00:06]} Kd4 {[%emt 0:00:02]} 102. Qd1 {[%emt 0:00:01]} Qe3+ {[%emt 0:00:03]} 103. Kf1 {[%emt 0:00:01]} Qd3+ {[%emt 0:00:01]} 104. Kf2 {[%emt 0:00:01]} Qe3+ {[%emt 0:00:03]} 105. Kf1 {[%emt 0:00:00]} Qf4+ {[%emt 0:00:05]} 106. Ke2 {[%emt 0:00:02]} Qxh2+ {[%emt 0:00:01]} 107. Kf3 {[%emt 0:00:02]} Qh5+ {[%emt 0:00:01]} 0-1

[Event "EWIBCC 2019"]
[Site "Monte-Carlo"]
[Date "2019.11.29"]
[Round "13.13"]
[White "Babiy, Olga"]
[Black "Zvereva, Marija"]
[Result "1-0"]
[ECO "B32"]
[WhiteElo "2249"]
[BlackElo "2154"]
[Annotator "NA"]
[PlyCount "111"]
[EventDate "2019.11.29"]
[EventType "swiss"]
[EventCountry "MNC"]
[SourceTitle "playchess.com"]
[Source "ChessBase"]
[SourceQuality "1"]
[TimeControl "180+2"]

1. e4 {[%emt 0:00:00]} c5 {[%emt 0:00:00]} 2. Nf3 {[%emt 0:00:00]} Nc6 {[%emt 0:00:00]} 3. d4 {[%emt 0:00:01]} cxd4 {[%emt 0:00:01]} 4. Nxd4 {[%emt 0:00:00]} e5 {[%emt 0:00:01]} 5. Nb5 {[%emt 0:00:01]} d6 {[%emt 0:00:01]} 6. c4 {[%emt 0:00:07]} Nf6 {[%emt 0:00:09]} 7. N1c3 {[%emt 0:00:04]} a6 {[%emt 0:00:01]} 8. Na3 {[%emt 0:00:01]} Be6 {[%emt 0:00:03]} 9. Be2 {[%emt 0:00:17]} Be7 {[%emt 0:00:04]} 10. O-O {[%emt 0:00:03]} O-O {[%emt 0:00:02]} 11. b3 {[%emt 0:00:02]} h6 {[%emt 0:00:25]} 12. Bb2 {[%emt 0:00:01]} Nh7 {[%emt 0:00:08]} 13. Nc2 {[%emt 0:00:04]} Ng5 {[%emt 0:00:23]} 14. Ne3 {[%emt 0:00:06]} Nd4 {[%emt 0:00:03]} 15. Bd3 {[%emt 0:00:21]} Rc8 {[%emt 0:00:12]} 16. Ncd5 {[%emt 0:00:01]} Nc6 {[%emt 0:00:15]} 17. Qe2 {[%emt 0:00:17]} Re8 {[%emt 0:00:36]} 18. Rad1 {[%emt 0:00:01]} Bf8 {[%emt 0:00:02]} 19. Bb1 {[%emt 0:00:04]} Qa5 {[%emt 0:00:14]} 20. a3 {[%emt 0:00:02]} b5 {[%emt 0:00:11]} 21. b4 {[%emt 0:00:10]} Qd8 {[%emt 0:00:09]} 22. cxb5 {[%emt 0:00:03]} axb5 {[%emt 0:00:02]} 23. Qxb5 {[%emt 0:00:02]} Bd7 {[%emt 0:00:22]} 24. Qb6 {[%emt 0:00:08]} Ne6 {[%emt 0:00:08]} 25. Qxd8 {[%emt 0:00:03]} Rcxd8 {[%emt 0:00:01]} 26. Nb6 {[%emt 0:00:13]} Ncd4 {[%emt 0:00:03]} 27. Nxd7 {[%emt 0:00:09]} Rxd7 {[%emt 0:00:01]} 28. Nf5 {[%emt 0:00:04]} g6 {[%emt 0:00:02]} 29. Nxd4 {[%emt 0:00:02]} Nxd4 {[%emt 0:00:02]} 30. Bxd4 {[%emt 0:00:05]} exd4 {[%emt 0:00:01]} 31. Rxd4 {[%emt 0:00:01]} Bg7 {[%emt 0:00:03]} 32. Rd2 {[%emt 0:00:24]} Ra8 {[%emt 0:00:03]} 33. Rd3 {[%emt 0:00:29]} Bb2 {[%emt 0:00:03]} 34. Rb3 {[%emt 0:00:15]} Bxa3 {[%emt 0:00:02]} 35. Bd3 {[%emt 0:00:06]} Rb7 {[%emt 0:00:01]} 36. Ra1 {[%emt 0:00:04]} Rba7 {[%emt 0:00:02]} 37. g3 {[%emt 0:00:04]} Kg7 {[%emt 0:00:05]} 38. Bc4 {[%emt 0:00:01]} Kf6 {[%emt 0:00:01]} 39. Bd5 {[%emt 0:00:01]} Bxb4 {[%emt 0:00:09]} 40. Rxa7 {[%emt 0:00:02]} Rxa7 {[%emt 0:00:01]} 41. Rxb4 {[%emt 0:00:01]} Ra1+ {[%emt 0:00:02]} 42. Kg2 {[%emt 0:00:01]} Ke5 {[%emt 0:00:01]} 43. Bxf7 {[%emt 0:00:05]} Rc1 {[%emt 0:00:03]} 44. Bxg6 {[%emt 0:00:02]} d5 {[%emt 0:00:02]} 45. Rb5 {[%emt 0:00:03]} Kd4 {[%emt 0:00:02]} 46. Rxd5+ {[%emt 0:00:03]} Kc4 {[%emt 0:00:02]} 47. Rd8 {[%emt 0:00:02]} Kb5 {[%emt 0:00:03]} 48. Rb8+ {[%emt 0:00:01]} Ka5 {[%emt 0:00:01]} 49. e5 {[%emt 0:00:02]} Re1 {[%emt 0:00:01]} 50. f4 {[%emt 0:00:02]} Ka6 {[%emt 0:00:02]} 51. Kf3 {[%emt 0:00:02]} Ka7 {[%emt 0:00:01]} 52. Rb2 {[%emt 0:00:01]} Ka6 {[%emt 0:00:03]} 53. Re2 {[%emt 0:00:01]} Ra1 {[%emt 0:00:01]} 54. e6 {[%emt 0:00:02]} Ra3+ {[%emt 0:00:02]} 55. Kg4 {[%emt 0:00:01]} Kb6 {[%emt 0:00:01]} 56. e7 {[%emt 0:00:01]} 1-0

[Event "EWIBCC 2019"]
[Site "Monte-Carlo"]
[Date "2019.11.29"]
[Round "13.14"]
[White "Antova, Gabriela"]
[Black "Belenkaya, Dina"]
[Result "1-0"]
[ECO "D24"]
[WhiteElo "2306"]
[BlackElo "2302"]
[Annotator "NA"]
[PlyCount "65"]
[EventDate "2019.11.29"]
[EventType "swiss"]
[EventCountry "MNC"]
[SourceTitle "playchess.com"]
[Source "ChessBase"]
[SourceQuality "1"]
[TimeControl "180+2"]

1. d4 {[%emt 0:00:00]} d5 {[%emt 0:03:02]} 2. c4 dxc4 {[%emt 0:00:00]} 3. Nf3 {[%emt 0:00:02]} Nf6 {[%emt 0:00:00]} 4. Nc3 {[%emt 0:00:01]} a6 {[%emt 0:00:00]} 5. e4 {[%emt 0:00:03]} b5 {[%emt 0:00:00]} 6. e5 {[%emt 0:00:01]} Nd5 {[%emt 0:00:00]} 7. a4 {[%emt 0:00:01]} Nxc3 {[%emt 0:00:00]} 8. bxc3 {[%emt 0:00:01]} Qd5 {[%emt 0:00:00]} 9. g3 {[%emt 0:00:04]} Bb7 {[%emt 0:00:00]} 10. Bg2 {[%emt 0:00:02]} Qd7 {[%emt 0:00:00]} 11. Ba3 {[%emt 0:00:12]} g6 {[%emt 0:00:00]} 12. h4 {[%emt 0:00:16]} h6 {[%emt 0:00:00]} 13. O-O {[%emt 0:00:13]} Bg7 {[%emt 0:00:00]} 14. Re1 {[%emt 0:00:05]} O-O {[%emt 0:00:00]} 15. e6 {[%emt 0:00:11]} Qd8 {[%emt 0:00:00]} 16. exf7+ {[%emt 0:00:49]} Rxf7 {[%emt 0:00:00]} 17. Ne5 {[%emt 0:00:07]} Bxe5 {[%emt 0:00:00]} 18. Bxb7 {[%emt 0:00:05]} Ra7 {[%emt 0:00:00]} 19. Be4 {[%emt 0:00:05]} Bd6 {[%emt 0:00:00]} 20. Bxg6 {[%emt 0:00:17]} Rg7 {[%emt 0:00:00]} 21. Bf5 {[%emt 0:00:22]} c6 {[%emt 0:00:00]} 22. Qf3 {[%emt 0:00:06]} Rc7 {[%emt 0:00:00]} 23. Be6+ {[%emt 0:00:08]} Kh8 {[%emt 0:00:00]} 24. Qh5 {[%emt 0:00:05]} Nd7 {[%emt 0:00:14]} 25. Qxh6+ {[%emt 0:00:04]} Rh7 {[%emt 0:00:01]} 26. Qg5 {[%emt 0:00:10]} Nf6 {[%emt 0:00:01]} 27. Bf5 {[%emt 0:00:05]} Rg7 {[%emt 0:00:18]} 28. Qh6+ {[%emt 0:00:06]} Kg8 {[%emt 0:00:00]} 29. Be6+ {[%emt 0:00:05]} Kf8 {[%emt 0:00:01]} 30. Bxd6 {[%emt 0:00:06]} exd6 {[%emt 0:00:03]} 31. Re3 {[%emt 0:00:03]} Rce7 {[%emt 0:00:08]} 32. Rae1 {[%emt 0:00:01]} Qe8 {[%emt 0:00:06]} 33. Qxf6+ {[%emt 0:00:01]} 1-0

[Event "EWIBCC 2019"]
[Site "Monte-Carlo"]
[Date "2019.11.29"]
[Round "13.16"]
[White "Gaponenko, Inna"]
[Black "Unuk, Laura"]
[Result "1-0"]
[ECO "C01"]
[WhiteElo "2427"]
[BlackElo "2298"]
[Annotator "NA"]
[PlyCount "103"]
[EventDate "2019.11.29"]
[EventType "swiss"]
[EventCountry "MNC"]
[SourceTitle "playchess.com"]
[Source "ChessBase"]
[SourceQuality "1"]
[TimeControl "180+2"]

1. e4 {[%emt 0:00:00]} e6 {[%emt 0:00:00]} 2. d4 {[%emt 0:00:01]} d5 {[%emt 0:00:00]} 3. exd5 {[%emt 0:00:01]} exd5 {[%emt 0:00:01]} 4. Nf3 {[%emt 0:00:01]} Bg4 {[%emt 0:00:06]} 5. h3 {[%emt 0:00:04]} Bh5 {[%emt 0:00:03]} 6. Qe2+ {[%emt 0:00:04]} Qe7 {[%emt 0:00:05]} 7. Be3 {[%emt 0:00:01]} c6 {[%emt 0:00:10]} 8. Nc3 {[%emt 0:00:06]} Nd7 {[%emt 0:00:09]} 9. O-O-O {[%emt 0:00:13]} O-O-O {[%emt 0:00:12]} 10. g4 {[%emt 0:00:02]} Bg6 {[%emt 0:00:02]} 11. Ne5 {[%emt 0:00:01]} Nxe5 {[%emt 0:00:06]} 12. dxe5 {[%emt 0:00:01]} Qxe5 {[%emt 0:00:15]} 13. f4 {[%emt 0:00:15]} Qe6 {[%emt 0:00:43]} 14. f5 {[%emt 0:00:06]} Bxf5 {[%emt 0:00:02]} 15. gxf5 {[%emt 0:00:01]} Qxf5 {[%emt 0:00:01]} 16. Bxa7 {[%emt 0:00:07]} Nf6 {[%emt 0:00:24]} 17. Bb6 {[%emt 0:00:58]} Re8 {[%emt 0:00:02]} 18. Qh2 {[%emt 0:00:01]} Qe5 {[%emt 0:00:05]} 19. Qxe5 {[%emt 0:00:21]} Rxe5 {[%emt 0:00:02]} 20. Bd3 {[%emt 0:00:01]} c5 {[%emt 0:00:18]} 21. Rhf1 {[%emt 0:00:13]} Kd7 {[%emt 0:00:12]} 22. Bb5+ {[%emt 0:00:22]} Kc8 {[%emt 0:00:28]} 23. Na4 {[%emt 0:00:09]} d4 {[%emt 0:00:07]} 24. Bc4 {[%emt 0:00:08]} Nd7 {[%emt 0:00:05]} 25. Rxf7 {[%emt 0:00:12]} g6 {[%emt 0:00:05]} 26. Ba5 {[%emt 0:00:03]} Bh6+ {[%emt 0:00:02]} 27. Kb1 {[%emt 0:00:01]} Rhe8 {[%emt 0:00:04]} 28. a3 {[%emt 0:00:05]} Re3 {[%emt 0:00:04]} 29. Rxh7 {[%emt 0:00:07]} Bf4 {[%emt 0:00:02]} 30. Nb6+ {[%emt 0:00:02]} Nxb6 {[%emt 0:00:01]} 31. Bxb6 {[%emt 0:00:01]} g5 {[%emt 0:00:01]} 32. Bxc5 {[%emt 0:00:02]} Re1 {[%emt 0:00:02]} 33. Rxe1 {[%emt 0:00:01]} Rxe1+ {[%emt 0:00:02]} 34. Ka2 {[%emt 0:00:01]} Rc1 {[%emt 0:00:01]} 35. Bd3 {[%emt 0:00:02]} Re1 {[%emt 0:00:04]} 36. Bxd4 {[%emt 0:00:02]} Kb8 {[%emt 0:00:02]} 37. b4 {[%emt 0:00:02]} Kc8 {[%emt 0:00:02]} 38. a4 {[%emt 0:00:02]} Kb8 {[%emt 0:00:01]} 39. a5 {[%emt 0:00:01]} Kc8 {[%emt 0:00:01]} 40. b5 {[%emt 0:00:01]} Kb8 {[%emt 0:00:02]} 41. a6 {[%emt 0:00:00]} bxa6 {[%emt 0:00:01]} 42. bxa6 {[%emt 0:00:01]} Be5 {[%emt 0:00:04]} 43. Bxe5+ {[%emt 0:00:06]} Rxe5 {[%emt 0:00:02]} 44. Kb3 {[%emt 0:00:01]} Ra5 {[%emt 0:00:02]} 45. Kb4 {[%emt 0:00:01]} Ra1 {[%emt 0:00:01]} 46. Kb5 {[%emt 0:00:01]} g4 {[%emt 0:00:01]} 47. hxg4 {[%emt 0:00:09]} Rb1+ {[%emt 0:00:02]} 48. Kc6 {[%emt 0:00:02]} Ka8 {[%emt 0:00:02]} 49. Kc5 {[%emt 0:00:04]} Kb8 {[%emt 0:00:03]} 50. g5 {[%emt 0:00:03]} Ra1 {[%emt 0:00:03]} 51. Kb6 {[%emt 0:00:02]} Rb1+ {[%emt 0:00:01]} 52. Bb5 {[%emt 0:00:01]} 1-0